fUST/lending_fUST_20240509
["ID","MTS","AMOUNT","RATE_DAILY","PERIOD"]
[326699810,1715260227621,-500.0,0.00041917,33]
[326699811,1715260227667,-500.0,0.00041917,33]
[326699812,1715260227713,-878.37,0.00041917,33]
[326699813,1715260227760,-411.42845502,0.00041917,33]
[326699814,1715260227809,-297.06698699,0.00041917,33]
[326699815,1715260227854,-500.0,0.00041917,33]
[326699816,1715260227902,-500.0,0.00041917,33]
[326699817,1715260227948,-500.0,0.00041917,33]
[326699818,1715260227998,-596.65,0.00041917,33]
[326699819,1715260228123,-379.0786722,0.00041917,33]
[326699820,1715260228168,-500.0,0.00041917,33]
[326699821,1715260228214,-500.0,0.00041917,33]
[326699822,1715260228259,-500.0,0.00041917,33]
[326699823,1715260228304,-534.67636392,0.00041917,33]
[326699824,1715260228352,-506.02992836,0.00042191,34]
[326699825,1715260228399,-500.0,0.00042191,34]
[326699826,1715260228445,-500.0,0.00042191,34]
[326699827,1715260228492,-255.04408726,0.00042191,34]
[326699828,1715260228538,-500.0,0.00042191,34]
[326699829,1715260228583,-500.0,0.00042191,34]
[326699830,1715260228628,-500.0,0.00042191,34]
[326699831,1715260228673,-500.0,0.00042191,2]
[326699832,1715260228720,-500.0,0.00042191,34]
[326699833,1715260228765,-500.0,0.00042191,34]
[326699834,1715260228812,-500.0,0.00042191,34]
[326699835,1715260228857,-283.180233,0.00042191,34]
[326699836,1715260228904,-500.0,0.00042191,34]
[326699837,1715260228951,-500.0,0.00042191,34]
[326699838,1715260229001,-681.5,0.00042191,34]
[326699839,1715260229048,-846.4,0.00042191,34]
[326699840,1715260229094,-500.0,0.00042191,34]
[326699841,1715260229138,-500.0,0.00042191,34]
[326699842,1715260229182,-878.37,0.00042191,34]
[326699843,1715260229225,-500.0,0.00042191,34]
[326699844,1715260229270,-500.0,0.00042191,34]
[326699845,1715260229317,-500.0,0.00042191,34]
[326699846,1715260229364,-596.65,0.00042191,34]
[326699847,1715260229411,-500.0,0.00042191,34]
[326699848,1715260229456,-197.18,0.00042191,34]
[326699849,1715260229503,-500.0,0.00042465,35]
[326699850,1715260229555,-500.0,0.00042465,35]
[326699851,1715260229603,-500.0,0.00042465,35]
[326699852,1715260229648,-500.0,0.00042465,35]
[326699853,1715260229695,-500.0,0.00042465,35]
[326699854,1715260229741,-500.0,0.00042465,2]
[326699855,1715260229787,-500.0,0.00042465,35]
[326699856,1715260229832,-500.0,0.00042465,35]
[326699857,1715260229879,-500.0,0.00042465,35]
[326699858,1715260229926,-500.0,0.00042465,35]
[326699859,1715260229973,-500.0,0.00042465,35]
[326699860,1715260230021,-681.5,0.00042465,35]
[326699861,1715260230068,-846.4,0.00042465,35]
[326699862,1715260230118,-500.0,0.00042465,35]
[326699863,1715260230164,-500.0,0.00042465,35]
[326699864,1715260230209,-878.37,0.00042465,35]
[326699865,1715260230256,-500.0,0.00042465,35]
[326699866,1715260230303,-500.0,0.00042465,35]
[326699867,1715260230349,-500.0,0.00042465,35]
[326699868,1715260230396,-596.65,0.00042465,35]
[326699869,1715260230443,-500.0,0.00042465,35]
[326699870,1715260230489,-1697.9100707,0.000425,30]
[326699871,1715260230536,-431.776654,0.00042657,2]
[326699872,1715260230581,-500.0,0.00042739,36]
[326699873,1715260230625,-500.0,0.00042739,36]
[326699874,1715260230672,-500.0,0.00042739,36]
[326699875,1715260230720,-500.0,0.00042739,36]
[326699876,1715260230766,-500.0,0.00042739,36]
[326699877,1715260230813,-482.61858549,0.00042739,2]
[326699878,1715260230858,-500.0,0.00042739,36]
[326699879,1715260230906,-500.0,0.00042739,36]
[326699880,1715260230952,-500.0,0.00042739,36]
[326699881,1715260231003,-500.0,0.00042739,36]
[326699882,1715260231050,-500.0,0.00042739,36]
[326699883,1715260231097,-681.5,0.00042739,36]
[326699884,1715260231144,-846.4,0.00042739,36]
[326699885,1715260231190,-500.0,0.00042739,36]
[326699886,1715260231236,-500.0,0.00042739,36]
[326699887,1715260231282,-878.37,0.00042739,36]
[326699888,1715260231328,-442.0125244,0.00042739,36]
[326699889,1715260231373,-500.0,0.00042739,36]
[326699890,1715260231419,-500.0,0.00042739,36]
[326699891,1715260231465,-596.65,0.00042739,36]
[326699892,1715260231511,-500.0,0.00042739,36]
[326699893,1715260231635,-171.4426122,0.0004277,2]
[326699894,1715260231680,-500.0,0.00043013,37]
[326699895,1715260231730,-500.0,0.00043013,37]
[326699896,1715260231775,-500.0,0.00043013,37]
[326699897,1715260231821,-500.0,0.00043013,37]
[326699899,1715260231868,-500.0,0.00043013,37]
[326699905,1715260231914,-500.0,0.00043013,37]
[326699907,1715260231960,-500.0,0.00043013,37]
[326699908,1715260232008,-500.0,0.00043013,37]
[326699909,1715260232054,-500.0,0.00043013,37]
[326699910,1715260232103,-305.92100472,0.00043013,37]
[326699911,1715260232149,-681.5,0.00043013,37]
[326699912,1715260232195,-846.4,0.00043013,37]
[326699913,1715260232241,-500.0,0.00043013,37]
[326699914,1715260232286,-500.0,0.00043013,37]
[326699915,1715260232334,-878.37,0.00043013,37]
[326699916,1715260232380,-281.72323308,0.00043013,37]
[326699917,1715260232427,-500.0,0.00043013,37]
[326699918,1715260232474,-596.65,0.00043013,37]
[326699919,1715260232519,-500.62957211,0.00043287,38]
[326699920,1715260232565,-500.0,0.00043287,38]
[326699921,1715260232612,-500.0,0.00043287,38]
[326699922,1715260232658,-500.0,0.00043287,38]
[326699923,1715260232706,-500.0,0.00043287,38]
[326699927,1715260232752,-500.0,0.00043287,38]
[326699933,1715260232797,-500.0,0.00043287,38]
[326699938,1715260232845,-500.0,0.00043287,38]
[326699939,1715260232891,-500.0,0.00043287,38]
[326699940,1715260232936,-681.5,0.00043287,38]
[326699941,1715260232981,-846.4,0.00043287,38]
[326699942,1715260233029,-500.0,0.00043287,38]
[326699943,1715260233077,-500.0,0.00043287,38]
[326699944,1715260233123,-878.37,0.00043287,38]
[326699945,1715260233170,-500.0,0.00043287,38]
[326699946,1715260233214,-596.65,0.00043287,38]
[326699947,1715260233259,-500.0,0.00043561,39]
[326699948,1715260233303,-500.0,0.00043561,39]
[326699949,1715260233349,-500.0,0.00043561,39]
[326699950,1715260233398,-500.0,0.00043561,39]
[326699951,1715260233444,-374.28698243,0.00043561,39]
[326699952,1715260233489,-500.0,0.00043561,39]
[326699953,1715260233534,-500.0,0.00043561,39]
[326699954,1715260233579,-500.0,0.00043561,39]
[326699955,1715260233625,-681.5,0.00043561,39]
[326699956,1715260233671,-846.4,0.00043561,39]
[326699957,1715260233735,-438.21447698,0.00043561,39]
[326699958,1715260233781,-500.0,0.00043561,39]
[326699959,1715260233827,-878.37,0.00043561,39]
[326699960,1715260233872,-500.0,0.00043561,39]
[326699961,1715260233919,-596.65,0.00043561,39]
[326699962,1715260233964,-500.0,0.00043835,40]
[326699963,1715260234009,-500.0,0.00043835,40]
[326699964,1715260234054,-500.0,0.00043835,40]
[326699965,1715260234102,-500.0,0.00043835,40]
[326699966,1715260234147,-500.0,0.00043835,40]
[326699967,1715260234191,-500.0,0.00043835,40]
[326699968,1715260234236,-681.5,0.00043835,40]
[326699969,1715260234283,-846.4,0.00043835,40]
[326699970,1715260234330,-500.0,0.00043835,40]
[326699971,1715260234376,-878.37,0.00043835,40]
[326699972,1715260234422,-299.01672151,0.00043835,40]
[326699973,1715260234469,-596.65,0.00043835,40]
[326699974,1715260234516,-500.0,0.00044109,41]
[326699975,1715260234562,-500.0,0.00044109,41]
[326699976,1715260234611,-500.0,0.00044109,41]
[326699977,1715260234658,-500.0,0.00044109,41]
[326699978,1715260234705,-331.50600862,0.00044109,41]
[326699979,1715260234752,-500.0,0.00044109,41]
[326699980,1715260234798,-681.5,0.00044109,41]
[326699981,1715260234843,-846.4,0.00044109,41]
[326699982,1715260234891,-500.0,0.00044109,41]
[326699983,1715260234940,-878.37,0.00044109,41]
[326699984,1715260234987,-596.65,0.00044109,41]
[326699985,1715260235128,-500.0,0.00044383,42]
[326699986,1715260235182,-500.0,0.00044383,42]
[326699987,1715260235230,-500.0,0.00044383,42]
[326699988,1715260235278,-299.09753495,0.00044383,42]
[326699989,1715260235326,-500.0,0.00044383,42]
[326699990,1715260235375,-681.5,0.00044383,42]
[326699991,1715260235424,-846.4,0.00044383,42]
[326699992,1715260235472,-500.0,0.00044383,42]
[326699993,1715260235522,-878.37,0.00044383,42]
[326699994,1715260235568,-596.65,0.00044383,42]
[326699995,1715260235616,-55555.0,0.00044557,5]
[326699996,1715260235663,-171.4426122,0.00044557,2]
[326699997,1715260235712,-500.0,0.00044657,43]
[326699998,1715260235761,-500.0,0.00044657,43]
[326699999,1715260235807,-500.0,0.00044657,43]
[326700000,1715260235857,-500.0,0.00044657,43]
[326700001,1715260235905,-681.5,0.00044657,43]
[326700002,1715260235953,-846.4,0.00044657,43]
[326700003,1715260236003,-500.0,0.00044657,43]
[326700004,1715260236050,-878.37,0.00044657,43]
[326700005,1715260236098,-596.65,0.00044657,43]
[326700006,1715260236144,-500.0,0.00044931,44]
[326700007,1715260236192,-500.0,0.00044931,44]
[326700008,1715260236238,-500.0,0.00044931,44]
[326700009,1715260236284,-500.0,0.00044931,44]
[326700010,1715260236331,-681.5,0.00044931,44]
[326700011,1715260236379,-846.4,0.00044931,44]
[326700012,1715260236427,-500.0,0.00044931,44]
[326700013,1715260236473,-878.37,0.00044931,44]
[326700014,1715260236519,-596.65,0.00044931,44]
[326700015,1715260236565,-5000.0,0.00045,20]
[326700016,1715260236612,-500.0,0.00045205,45]
[326700017,1715260236659,-500.0,0.00045205,45]
[326700018,1715260236707,-500.0,0.00045205,45]
[326700019,1715260236754,-500.0,0.00045205,45]
[326700020,1715260236801,-681.5,0.00045205,45]
[326700021,1715260236848,-846.4,0.00045205,45]
[326700022,1715260236896,-500.0,0.00045205,45]
[326700023,1715260236943,-878.37,0.00045205,45]
[326700024,1715260236990,-596.65,0.00045205,45]
[326700025,1715260237042,-289.5234607,0.00045479,46]
[326700026,1715260237087,-500.0,0.00045479,46]
[326700027,1715260237140,-500.0,0.00045479,46]
[326700028,1715260237187,-681.5,0.00045479,46]
[326700029,1715260237232,-846.4,0.00045479,46]
[326700030,1715260237278,-500.0,0.00045479,46]
[326700031,1715260237325,-878.37,0.00045479,46]
[326700032,1715260237372,-596.65,0.00045479,46]
[326700033,1715260237418,-500.0,0.0004566,120]
[326700034,1715260237464,-500.0,0.00045753,47]
[326700035,1715260237512,-500.0,0.00045753,47]
[326700036,1715260237557,-681.5,0.00045753,47]
[326700037,1715260237606,-846.4,0.00045753,47]
[326700038,1715260237654,-500.0,0.00045753,47]
[326700039,1715260237703,-878.37,0.00045753,47]
[326700040,1715260237750,-596.65,0.00045753,47]
[326700041,1715260237796,-154.69061876,0.000459,4]
[326700042,1715260237840,-541.30302221,0.00046027,48]
[326700043,1715260237886,-500.0,0.00046027,48]
[326700044,1715260237933,-681.5,0.00046027,48]
[326700045,1715260237980,-846.4,0.00046027,48]
[326700046,1715260238029,-500.0,0.00046027,48]
[326700047,1715260238078,-878.37,0.00046027,48]
[326700048,1715260238125,-596.65,0.00046027,48]
[326700051,1715260238171,-500.0,0.00046301,49]
[326700057,1715260238218,-681.5,0.00046301,49]
[326700062,1715260238263,-846.4,0.00046301,49]
[326700067,1715260238309,-500.0,0.00046301,49]
[326700068,1715260238356,-878.37,0.00046301,49]
[326700069,1715260238403,-596.65,0.00046301,49]
[326700070,1715260238450,-500.0,0.00046575,50]
[326700071,1715260238504,-681.5,0.00046575,50]
[326700072,1715260238551,-846.4,0.00046575,50]
[326700073,1715260238597,-500.0,0.00046575,50]
[326700074,1715260238727,-878.37,0.00046575,50]
[326700075,1715260238775,-596.65,0.00046575,50]
[326700076,1715260238824,-500.0,0.00046849,51]
[326700077,1715260238871,-681.5,0.00046849,51]
[326700078,1715260238920,-846.4,0.00046849,51]
[326700079,1715260238970,-500.0,0.00046849,51]
[326700080,1715260239022,-878.37,0.00046849,51]
[326700081,1715260239077,-596.65,0.00046849,51]
[326700082,1715260239127,-500.0,0.00047123,52]
[326700083,1715260239177,-681.5,0.00047123,52]
[326700084,1715260239228,-846.4,0.00047123,52]
[326700085,1715260239277,-420.38917572,0.00047123,52]
[326700086,1715260239329,-878.37,0.00047123,52]
[326700087,1715260239380,-596.65,0.00047123,52]
[326700091,1715260239435,-265.10177555,0.00047397,53]
[326700096,1715260239492,-681.51238847,0.00047397,53]
[326700100,1715260239544,-846.6036311,0.00047397,53]
[326700101,1715260239596,-878.42840822,0.00047397,53]
[326700102,1715260239647,-596.85112176,0.00047397,53]
[326700103,1715260239698,-154.69061876,0.0004834,10]
[326700104,1715260239749,-166.666666,0.00048986,2]
[326700105,1715260239798,-154.69061876,0.0005,30]
[326700106,1715260239850,-962.90174446,0.0005,60]
[326700107,1715260239902,-192.8567073,0.0005,120]
[326700108,1715260239953,-150.0,0.00051,85]
[326700109,1715260240006,-1000.0,0.00052054,120]
[326700110,1715260240054,-1000.0,0.00052054,120]
[326700111,1715260240104,-1000.0,0.00052054,120]
[326700113,1715260241035,-1000.0,0.00052054,120]
[326700116,1715260241550,-1000.0,0.00052054,120]
[326700117,1715260241598,-1000.0,0.00052054,120]
[326700118,1715260241645,-1066.83800672,0.00052054,120]
[326700119,1715260241694,-505.93172846,0.00054794,30]
[326700120,1715260241744,-500.0,0.00054794,120]
[326700121,1715260241792,-500.0,0.00054794,120]
[326700122,1715260241839,-500.0,0.00054794,120]
[326700123,1715260241886,-500.0,0.00054794,120]
[326700124,1715260241934,-500.0,0.00054794,120]
[326700125,1715260241982,-500.0,0.00054794,120]
[326700126,1715260242030,-500.0,0.00054794,120]
[326700127,1715260242080,-500.0,0.00054794,120]
[326700128,1715260242124,-500.0,0.00054794,120]
[326700129,1715260242169,-500.0,0.00054794,120]
[326700130,1715260242213,-500.0,0.00054794,120]
[326700131,1715260242258,-500.0,0.00054794,120]
[326700132,1715260242303,-500.0,0.00054794,120]
[326700133,1715260242352,-500.0,0.00054794,120]
[326700134,1715260242399,-500.0,0.00054794,120]
[326700135,1715260242445,-500.0,0.00054794,120]
[326700136,1715260242496,-500.0,0.00054794,120]
[326700137,1715260242541,-500.0,0.00054794,120]
[326700138,1715260242588,-299.68988504,0.00054794,120]
[326700139,1715260242634,-160.0,0.0006,60]
[326700140,1715260242680,-250.0,0.00068493,30]
[326700141,1715260242733,-500.0,0.00068493,31]
[326700142,1715260242781,-206.40925056,0.00068493,32]
[326700143,1715260242863,-1718.19,0.00068493,120]
[326700144,1715260242910,-154.69061876,0.00069,7]
[326700145,1715260242958,-3000.0,0.00069,120]
[326700146,1715260243008,-3000.0,0.0006901,120]
[326700147,1715260243055,-3000.0,0.0006902,120]
[326700148,1715260243105,-3000.0,0.0006903,120]
[326700149,1715260243154,-3964.320289,0.0006904,120]
[326700150,1715260243202,-166.666666,0.00070986,120]
[326700154,1715260243248,-1718.19,0.00071232,120]
[326700168,1715260243298,-1718.19,0.00073972,120]
[326700171,1715260243345,-1718.19,0.00076712,120]
[326700172,1715260243391,-166.666666,0.00079315,120]
[326700173,1715260243436,-1718.19,0.00079452,120]
[326700174,1715260243484,-1718.19,0.00082191,120]
[326700175,1715260243531,-1718.19,0.00084931,120]
[326700176,1715260243580,-1718.19,0.00087671,120]
[326700177,1715260243625,-1718.19,0.0009041,120]
[326700178,1715260243756,-166.666666,0.00092986,120]
[326700179,1715260243803,-1718.19,0.0009315,120]
[326700180,1715260243848,-1718.19,0.0009589,120]
[326700181,1715260243895,-1718.19,0.0009863,120]
[326700182,1715260243942,-1068.86615321,0.000999,120]
[326700183,1715260244140,-160.0,0.00038321,30]
[326700184,1715260244149,-339.60266127,0.00041367,4]
[326700185,1715260244158,-1097.62250347,0.00041368,2]
[326700186,1715260244168,-154.69061876,0.00041368,4]
[326700187,1715260244178,-500.0,0.00041369,31]
[326700188,1715260244187,-500.0,0.00041643,32]
[326700189,1715260244197,-500.0,0.00041917,33]
[326700190,1715260244206,-500.0,0.00042191,34]
[326700191,1715260244215,-614.24763322,0.00042463,4]
[326700192,1715260244224,-244.79332187,0.00042463,4]
[326700193,1715260244234,-466.94535979,0.00042463,4]
[326700194,1715260244244,-683.9304868,0.00042463,2]
[326700195,1715260244253,-4279.3857928,0.00042463,4]
[326700196,1715260244262,-256.54434954,0.00042463,4]
[326700197,1715260244272,-511.54151708,0.00042464,4]
[326700198,1715260244281,-500.0,0.00042465,35]
[326700199,1715260244291,-500.0,0.00042739,36]
[326700200,1715260244300,-500.0,0.00043013,37]
[326700201,1715260244309,-216.73745413,0.00043287,38]
[326700202,1715260244319,-714.24352697,0.000999,120]
[326700203,1715260244331,-38252.42615942,0.000999,120]
[326700204,1715260244340,-1718.19,0.00101369,120]
[326700205,1715260244350,-1718.19,0.00104109,120]
[326700206,1715260244359,-1718.19,0.00106849,120]
[326700207,1715260244369,-1718.19,0.00109589,120]
[326700208,1715260244378,-1718.19,0.00112328,120]
[326700209,1715260244388,-166.666666,0.00114986,120]
[326700210,1715260244397,-1718.19,0.00115068,120]
[326700211,1715260244406,-1718.19,0.00117808,120]
[326700212,1715260244415,-1718.19,0.00120547,120]
[326700213,1715260244424,-1718.19,0.00123287,120]
[326700214,1715260244434,-1718.19,0.00126027,120]
[326700215,1715260244444,-1319.97344719,0.00128767,120]
[326700216,1715260244472,-295.88177251,0.0004,15]
[326700217,1715260244482,-286.8613284,0.00044556,4]
[326700218,1715260244491,-171.89181395,0.00044556,4]
[326700219,1715260244501,-398.21655281,0.00128767,120]
[326700220,1715260244510,-1718.26791995,0.00131506,120]
[326700221,1715260244519,-166.666666,0.00136986,120]
[326700222,1715260244529,-195.359802,0.00136986,120]
[326700223,1715260244539,-166.666666,0.00136986,120]
[326700224,1715260244548,-192.20197806,0.00148734,120]
[326700225,1715260244557,-176.0989,0.00164665,2]
[326700226,1715260244568,-150.0,0.002,120]
[326700227,1715260244579,-727.61143762,0.0021,120]
[326700228,1715260244587,-383.99578249,0.0021,120]
[326700229,1715260244596,-727.61143762,0.0022,120]
[326700230,1715260244606,-383.99578249,0.0022,120]
[326700231,1715260244615,-727.61143762,0.0023,120]
[326700232,1715260244624,-383.99578249,0.0023,120]
[326700233,1715260244634,-727.61143762,0.0024,120]
[326700234,1715260244643,-383.99578249,0.0024,120]
[326700235,1715260244653,-304.19315708,0.0025,120]
[326700236,1715260244662,-727.61143762,0.0025,120]
[326700237,1715260244671,-383.99578249,0.0025,120]
[326700238,1715260244680,-727.61143762,0.0026,120]
[326700239,1715260244693,-383.99578249,0.0026,120]
[326700240,1715260244702,-727.61143762,0.0027,120]
[326700241,1715260244712,-383.99578249,0.0027,120]
[326700242,1715260244721,-727.61143762,0.0028,120]
[326700243,1715260244730,-383.99578249,0.0028,120]
[326700244,1715260244739,-727.61143762,0.0029,120]
[326700245,1715260244748,-383.99578249,0.0029,120]
[326700246,1715260244757,-150.0,0.003,120]
[326700247,1715260244766,-200.0,0.003,120]
[326700248,1715260244776,-727.61143762,0.003,120]
[326700249,1715260244785,-383.99578249,0.003,120]
[326700250,1715260244794,-727.61143762,0.0031,120]
[326700251,1715260244803,-383.99578249,0.0031,120]
[326700252,1715260244813,-727.61143762,0.0032,120]
[326700253,1715260244822,-383.99578249,0.0032,120]
[326700254,1715260244832,-727.61143762,0.0033,120]
[326700255,1715260244842,-383.99578249,0.0033,120]
[326700256,1715260244852,-500.0,0.00339726,120]
[326700257,1715260244861,-500.0,0.00339726,120]
[326700258,1715260244870,-500.0,0.00339726,120]
[326700259,1715260244879,-500.0,0.00339726,120]
[326700261,1715260244888,-727.61143762,0.0034,120]
[326700263,1715260244897,-383.99578249,0.0034,120]
[326700264,1715260244906,-2463.1773817,0.003459,120]
[326700266,1715260244919,-923.37,0.003459,120]
[326700273,1715260245102,-481.4526183,0.003459,120]
[326700274,1715260245111,-3868.0,0.003459,120]
[326700275,1715260245120,-2477.85033228,0.003459,120]
[326700279,1715260247457,-333.626163,0.003459,120]
[326700280,1715260624329,175.305256,0.0001589,2]
[326700281,1715260688112,3456.78149574,0.00020913,2]
[326700282,1715260704306,154.69061876,9.999e-05,2]
[326700283,1715260749706,16133.64168859,9.999e-05,2]
[326700285,1715260842631,-166.666666,0.00021644,2]
[326700286,1715260842678,-150.0,0.00021914,2]
[326700287,1715260842725,-400.02877114,0.00026572,2]
[326700288,1715260842772,-167.07450764,0.00026573,2]
[326700289,1715260842818,-166.666666,0.00026986,2]
[326700290,1715260842867,-186.81844012,0.00027999,2]
[326700291,1715260842915,-221.16623315,0.00028,2]
[326700292,1715260842963,-17194.87408336,0.0003,10]
[326700293,1715260843011,-447.59882745,0.00032,4]
[326700294,1715260843061,-11232.5733639,0.00032646,2]
[326700295,1715260843109,-198.854624,0.00033157,2]
[326700296,1715260843156,-466.94535979,0.00034,4]
[326700297,1715260843202,-598.43917595,0.00035,2]
[326700298,1715260843260,-1980.598515,0.00037,2]
[326700299,1715260843308,-4279.3857928,0.0004,4]
[326700300,1715260843354,-5307.91784374,0.00042845,4]
[326700301,1715260843401,-937.05212562,0.00042848,4]
[326700302,1715260843450,-150.0,0.00044285,30]
[326700303,1715260843497,-15395.53197948,0.00045005,2]
[326700304,1715260843543,-171.89181395,0.00045103,4]
[326700305,1715260843590,-154.87471331,0.00045103,4]
[326700306,1715260843638,-236.11595108,0.00045103,4]
[326700307,1715260843686,-580.54,0.00045104,30]
[326700308,1715260843737,-1688.07771089,0.00045105,3]
[326700309,1715260843915,-37520.30683563,0.00045105,5]
[326700310,1715261419951,-166.666668,0.00021644,2]
[326700311,1715261420011,-166.666666,0.00026986,2]
[326700312,1715261420061,-166.666666,0.0003288,2]
[326700313,1715261420109,-176.052113,0.000329,2]
[326700314,1715261420155,-166.666666,0.00033776,2]
[326700315,1715261420204,-166.666666,0.00034673,2]
[326700316,1715261420262,-166.666666,0.00035569,2]
[326700317,1715261420309,-166.666666,0.00036465,2]
[326700318,1715261420358,-166.666666,0.00037362,2]
[326700319,1715261420408,-182.72987532,0.00043005,2]
[326700320,1715261420467,-256.54434954,0.00045103,4]
[326700321,1715261420515,-466.94535979,0.00045103,4]
[326700322,1715261420600,-339.60266127,0.00045103,4]
[326700323,1715261420711,-1604.26077329,0.00045103,4]
[326700324,1715261420761,-19651.28466669,0.00045104,15]
[326700325,1715261420814,-1163.54147593,0.00045105,4]
[326700326,1715261420865,-580.54,0.00045378,31]
[326700327,1715261420914,-580.54,0.00045652,32]
[326700328,1715261420959,-154.7215013,0.000459,4]
[326700329,1715261421006,-580.54,0.00045926,33]
[326700330,1715261421060,-580.54,0.000462,34]
[326700331,1715261421110,-580.54,0.00046474,35]
[326700332,1715261421159,-580.54,0.00046748,36]
[326700333,1715261421208,-580.54,0.00047022,37]
[326700334,1715261421259,-580.54,0.00047296,38]
[326700335,1715261421312,-580.54,0.0004757,39]
[326700336,1715261421363,-580.54,0.00047844,40]
[326700337,1715261421412,-182.72987532,0.00048005,2]
[326700338,1715261421462,-580.54,0.00048118,41]
[326700339,1715261421513,-154.7215013,0.00048391,10]
[326700340,1715261421564,-580.54,0.00048392,42]
[326700341,1715261421612,-580.54,0.00048666,43]
[326700342,1715261421659,-580.54,0.0004894,44]
[326700343,1715261421706,-166.666666,0.00048986,2]
[326700344,1715261421752,-580.54,0.00049214,45]
[326700345,1715261421796,-580.54,0.00049488,120]
[326700346,1715261421844,-580.54,0.00049762,120]
[326700347,1715261421889,-154.69061876,0.0005,30]
[326700348,1715261421935,-261.93931476,0.0005,60]
[326700349,1715261421979,-580.54,0.00050036,120]
[326700350,1715261422025,-580.54,0.0005031,120]
[326700351,1715261422072,-580.54,0.00050584,120]
[326700352,1715261422118,-580.54,0.00050858,120]
[326700353,1715261422164,-580.54,0.00051132,120]
[326700354,1715261422210,-580.66417988,0.00051406,120]
[326700355,1715261422255,-511.54151708,0.00057773,4]
[326700356,1715261422300,-286.8613284,0.00057774,4]
[326700357,1715261422347,-2263.54116,0.00057774,2]
[326700358,1715261422395,-614.24763322,0.00057776,4]
[326700359,1715261422443,-30000.0,0.00057777,120]
[326700360,1715261422489,-494.0,0.00058951,120]
[326700361,1715261422534,-4814.3090169,0.00066654,7]
[326700362,1715261422584,-166.666666,0.00070986,120]
[326700363,1715261422632,-161.98231895,0.00079209,2]
[326700364,1715261422680,-166.666666,0.00079315,120]
[326700365,1715261422727,-1623.813367,0.0008,120]
[326700366,1715261422774,-166.666666,0.00092986,120]
[326700367,1715261422821,-844.03885545,0.0009698,61]
[326700368,1715261422870,-13260.21,0.0009698,3]
[326700369,1715261422935,-11050.18,0.0009698,3]
[326700370,1715261422982,-300.02059876,0.00096989,14]
[326700371,1715261423114,-15912.25,0.0009699,3]
[326700372,1715261423162,-214.86476744,0.00096998,4]
[326700373,1715261423208,-6973.37646826,0.00096998,14]
[326700374,1715261423257,-1688.87486368,0.00097,120]
[326700375,1715261423306,-15552.69459163,0.00097,120]
[326700376,1715261423354,-500.0,0.00097999,120]
[326700377,1715261423405,-163.27154501,0.00097999,120]
[326700378,1715261423453,-1688.0,0.00098,120]
[326700379,1715261423499,-15552.0,0.00098,120]
[326700380,1715261423544,-661.80725859,0.00098,120]
[326700381,1715261423593,-1688.0,0.00099,120]
[326700382,1715261423640,-15552.0,0.00099,120]
[326700383,1715261423685,-661.0,0.00099,120]
[326700384,1715261423731,-714.24352697,0.000999,120]
[326700385,1715261423779,-1000.0,0.001,2]
[326700386,1715261423827,-1000.0,0.001,2]
[326700387,1715261423876,-1000.0,0.001,2]